bitfinex-derivatives/quotes_ETHF0:USTF0_20260207
["timestamp","ask_amount","ask_price","bid_price","bid_amount"]
[1770484719058,0.00413217,2043.0,2041.2,0.57661926]
[1770484719267,0.53600468,2043.0,2041.3,0.57661926]
[1770484720168,0.00413217,2043.0,2041.7,0.57661926]
[1770484720658,0.00413217,2043.0,2041.8,0.57661926]
[1770484720863,0.00413217,2043.0,2042.0,0.57661926]
[1770484721459,0.00413217,2043.0,2042.1,0.57661926]
[1770484721664,0.00413217,2043.0,2042.3,0.57661926]
[1770484721860,0.53600468,2043.0,2042.3,0.57661926]
[1770484722064,0.53600468,2043.0,2042.1,0.57661926]
[1770484723865,0.53187251,2042.9,2042.1,0.57661926]
[1770484724173,0.00413217,2043.0,2042.1,0.57661926]
[1770484725379,0.53600468,2043.0,2041.7,0.57661926]
[1770484725671,0.00413217,2043.0,2041.7,0.57661926]
[1770484726776,0.00413217,2043.0,2041.8,0.57661926]
[1770484727374,0.20750221,2044.2,2042.0,0.57661926]
[1770484727572,0.20750221,2044.0,2042.0,0.57661926]
[1770484727772,0.20750221,2044.0,2042.1,0.57661926]
[1770484727978,0.20750221,2044.6,2042.3,0.82162926]
[1770484728278,0.21119878,2044.6,2042.4,0.57661926]
[1770484728771,0.21119878,2044.6,2042.5,0.57661926]
[1770484728977,0.00369657,2044.6,2042.9,0.57661926]
[1770484729580,0.20314512,2044.5,2042.9,0.57661926]
[1770484729774,0.00369657,2044.6,2043.0,0.57661926]
[1770484729976,0.20314512,2045.5,2043.2,0.57661926]
[1770484730979,0.20836493,2045.5,2043.2,0.57661926]
[1770484735178,0.20836493,2045.5,2043.3,0.57661926]
[1770484735879,1.44110451,2046.1,2043.2,0.2449]
[1770484735880,0.53187251,2046.5,2044.4,0.57661926]
[1770484736081,0.53187251,2047.1,2044.6,0.57661926]
[1770484736383,0.53187251,2046.9,2044.9,0.57661926]
[1770484736881,0.53729116,2046.9,2044.9,0.58235496]
[1770484737086,0.53729116,2046.9,2045.0,0.57661926]
[1770484737280,0.53729116,2046.9,2045.1,0.57661926]
[1770484737585,0.00541865,2046.9,2045.4,0.57661926]
[1770484737782,0.53187251,2047.6,2045.6,0.57661926]
[1770484737983,0.53187251,2048.3,2045.9,0.57661926]
[1770484738378,0.53187251,2048.3,2046.0,0.57661926]
[1770484738779,0.53572634,2048.3,2046.0,0.57661926]
[1770484740487,0.53572634,2048.3,2046.2,0.57661926]
[1770484740879,0.53572634,2048.3,2046.4,0.57661926]
[1770484741076,0.53572634,2048.3,2046.4,0.58028908]
[1770484741684,0.53572634,2048.3,2046.6,0.57661926]
[1770484741884,0.53187251,2049.0,2046.6,0.57661926]
[1770484742181,0.53187251,2049.0,2046.6,6.90161926]
[1770484742382,0.53187251,2049.0,2046.7,0.57661926]
[1770484742789,0.53187251,2049.0,2046.5,0.57661926]
[1770484743090,0.53187251,2048.8,2046.7,0.57661926]
[1770484745790,0.57971065,2048.0,2046.4,0.00366982]
[1770484746092,0.57971065,2047.9,2046.4,0.00366982]
[1770484746692,0.57971065,2047.9,2046.4,0.59145965]
[1770484746892,0.57971065,2047.9,2046.4,0.00366982]
[1770484747094,0.57971065,2047.9,2046.4,0.59145965]
[1770484749097,0.57971065,2047.9,2046.4,0.00366982]
[1770484749301,0.57971065,2047.9,2046.4,0.59145965]
[1770484750397,0.57971065,2048.9,2046.4,0.59145965]
[1770484750988,0.56182057,2048.8,2046.6,0.55907251]
[1770484751997,0.20675578,2049.8,2047.3,0.55907251]
[1770484752294,0.56182057,2050.4,2047.8,0.55907251]
[1770484752492,0.56182057,2050.2,2048.0,0.55907251]
[1770484752891,0.56182057,2050.2,2048.0,0.56533403]
[1770484753094,0.56655154,2050.2,2048.0,0.56533403]
[1770484754195,2.5600311,2050.2,2048.0,0.00626152]
[1770484754396,0.56182057,2049.6,2048.0,0.00626152]
[1770484754701,0.56182057,2049.4,2048.0,0.00626152]
[1770484754893,0.56182057,2049.1,2046.4,0.55907251]
[1770484755092,0.56182057,2048.9,2046.4,0.55907251]
[1770484755801,0.56182057,2048.9,2046.4,0.56249317]
[1770484757298,0.56182057,2048.7,2046.4,0.56249317]
[1770484757498,0.56778326,2048.7,2046.5,0.55907251]
[1770484758305,0.00596269,2048.7,2046.5,0.55907251]
[1770484758503,0.56182057,2049.6,2047.0,0.55907251]
[1770484759300,0.56182057,2049.4,2047.0,0.55907251]
[1770484759512,0.56182057,2049.2,2047.0,0.55907251]
[1770484760508,0.56182057,2049.0,2047.0,0.55907251]
[1770484762308,0.56182057,2048.8,2047.0,0.55907251]
[1770484763207,42.97294697,2049.1,2047.0,0.55907251]
[1770484763208,0.56182057,2048.6,2047.0,0.55907251]
[1770484763409,0.56182057,2048.4,2047.0,0.55907251]
[1770484764409,0.56182057,2048.2,2047.0,0.55907251]
[1770484764810,0.56182057,2048.5,2047.0,0.55907251]
[1770484765011,42.97294697,2048.7,2047.0,0.55907251]
[1770484765012,0.56182057,2048.3,2047.0,0.55907251]
[1770484765508,0.56182057,2048.1,2047.0,0.55907251]
[1770484765913,0.56182057,2048.4,2047.0,0.55907251]
[1770484766114,42.97294697,2048.8,2047.0,0.55907251]
[1770484766311,5.07697961,2048.7,2047.0,0.55907251]
[1770484766611,4.51515904,2048.6,2047.0,0.55907251]
[1770484766816,0.56182057,2048.7,2047.0,0.55907251]
[1770484767016,5.08114601,2048.6,2047.0,0.55907251]
[1770484767315,0.56182057,2048.6,2047.0,0.55907251]
[1770484767510,4.50466787,2048.5,2047.0,0.55907251]
[1770484767726,0.56182057,2048.7,2047.0,0.55907251]
[1770484767908,5.06682638,2048.6,2047.0,0.55907251]
[1770484768109,0.56182057,2048.6,2047.0,0.55907251]
[1770484769618,0.56182057,2048.4,2047.0,0.55907251]
[1770484770516,0.56182057,2048.8,2047.0,0.55907251]
[1770484770714,0.56182057,2048.6,2047.0,0.55907251]
[1770484770910,42.97294697,2048.9,2047.0,0.55907251]
[1770484771110,5.06811737,2048.8,2047.0,0.55907251]
[1770484771315,4.5062968,2048.7,2047.0,0.55907251]
[1770484771511,0.56182057,2048.8,2047.0,0.55907251]
[1770484771713,4.50515665,2048.7,2047.0,0.55907251]
[1770484771916,0.56182057,2048.7,2047.0,0.55907251]
[1770484772116,43.53476754,2049.0,2047.0,0.55907251]
[1770484772322,5.06554098,2048.9,2047.0,0.55907251]
[1770484772619,0.56182057,2048.7,2047.0,0.55907251]
[1770484772813,0.56182057,2048.5,2047.0,0.55907251]
[1770484773014,0.56182057,2048.3,2047.0,0.55907251]
[1770484773817,5.0636123,2048.2,2047.0,0.55907251]
[1770484774017,0.56182057,2048.2,2047.0,0.55907251]
[1770484775722,0.58158863,2048.5,2047.0,0.55907251]
[1770484775924,0.58158863,2048.3,2047.0,0.55907251]
[1770484776319,0.58158863,2048.6,2047.0,0.55907251]
[1770484776515,0.58158863,2048.4,2047.0,0.55907251]
[1770484776723,0.58158863,2048.2,2047.0,0.55907251]
[1770484777414,4.50845088,2048.1,2047.0,0.55907251]
[1770484777615,0.58158863,2048.4,2047.0,0.55907251]
[1770484777818,5.08974264,2048.3,2047.0,0.55907251]
[1770484778023,0.58158863,2048.3,2047.0,0.55907251]
[1770484778424,4.51068975,2048.2,2047.0,0.55907251]
[1770484778725,42.97294697,2048.5,2047.0,0.55907251]
[1770484778925,4.50811244,2048.4,2047.0,0.55907251]
[1770484779223,42.97294697,2048.7,2047.0,0.55907251]
[1770484779419,5.08969499,2048.6,2047.2,0.57338083]
[1770484779618,5.08969499,2048.5,2047.2,0.57338083]
[1770484779820,0.58158863,2048.5,2047.2,0.57338083]
[1770484781321,42.97294697,2048.8,2047.2,0.57338083]
[1770484781518,42.97294697,2049.1,2047.6,0.57338083]
[1770484781715,5.03820548,2049.0,2047.7,0.57338083]
[1770484781919,5.03813121,2048.9,2047.7,0.57338083]
[1770484782125,0.58158863,2048.9,2047.7,0.57338083]
[1770484783222,0.58158863,2049.1,2047.7,0.57338083]
[1770484783420,0.58158863,2048.9,2047.7,0.57338083]
[1770484783619,0.58158863,2048.7,2047.7,0.57338083]
[1770484783822,0.58158863,2048.5,2047.7,0.57338083]
[1770484784119,43.5545356,2048.8,2047.7,0.57338083]
[1770484784323,5.7297243,2048.9,2047.2,0.57338083]
[1770484784324,0.58158863,2048.6,2047.2,0.57338083]
[1770484784520,0.58158863,2048.4,2047.2,0.57338083]
[1770484784818,42.97294697,2048.8,2047.2,0.57338083]
[1770484785122,0.58158863,2048.6,2047.2,0.57338083]
[1770484785319,0.58158863,2048.9,2047.6,0.57338083]
[1770484785625,0.58158863,2049.1,2047.6,0.57338083]
[1770484785820,0.58158863,2048.9,2047.6,0.57338083]
[1770484786222,0.58158863,2048.9,2047.5,0.57338083]
[1770484786422,0.58158863,2048.7,2047.5,0.57338083]
[1770484786920,7.16215538,2049.3,2047.6,0.57338083]
[1770484786921,42.97294697,2049.2,2047.6,0.57338083]
[1770484787126,4.42255041,2049.1,2047.7,0.57338083]
[1770484787325,0.58158863,2049.1,2047.7,0.57338083]
[1770484787520,0.58158863,2049.3,2047.9,0.57338083]
[1770484787724,0.5874077,2049.4,2048.1,0.57338083]
[1770484788025,0.58158863,2049.2,2048.1,0.57338083]
[1770484788824,0.58158863,2049.2,2047.9,0.25027194]
[1770484789022,0.58158863,2049.0,2047.9,0.00594194]
[1770484789216,42.97876604,2049.4,2047.9,0.57932277]
[1770484789217,0.58158863,2048.8,2047.9,0.57932277]
[1770484789728,43.48841743,2049.4,2047.9,0.57932277]
[1770484789928,0.58158863,2049.2,2047.9,0.57932277]
[1770484790429,0.58158863,2049.0,2047.9,0.57932277]
[1770484791225,0.58158863,2049.2,2047.9,0.57932277]
[1770484791426,0.58158863,2049.0,2047.9,0.57932277]
[1770484792929,0.00581907,2049.4,2047.9,7.70726262]
[1770484793123,0.58158863,2049.8,2048.2,0.57338083]
[1770484793325,0.58158863,2049.8,2048.3,0.57338083]
[1770484793525,43.48259836,2050.3,2048.5,0.57338083]
[1770484793731,4.96303272,2050.2,2048.7,0.57338083]
[1770484793927,0.58158863,2050.4,2048.7,0.57338083]
[1770484794125,0.00353233,2050.4,2049.0,0.57338083]
[1770484794334,0.58512096,2050.4,2049.1,0.57338083]
[1770484794827,8.6581368,2051.5,2048.9,7.37215985]
[1770484794828,7.24324147,2052.6,2050.1,0.00706466]
[1770484795024,0.58821083,2052.3,2050.2,2.392]
[1770484795224,0.58821083,2051.9,2050.1,2.90438189]
[1770484795425,0.58894624,2051.7,2050.0,2.90438189]
[1770484795628,0.58894624,2051.7,2050.3,2.90438189]
[1770484795831,0.58894624,2051.5,2050.5,2.90438189]
[1770484796030,0.58894624,2051.5,2050.3,2.91055825]
[1770484796329,0.58894624,2051.3,2050.3,0.00617636]
[1770484796835,0.58894624,2051.1,2049.8,2.90438189]
[1770484797231,0.58894624,2050.9,2049.7,2.90438189]
[1770484797431,0.58894624,2050.9,2049.2,2.96430915]
[1770484797635,1.43088692,2051.3,2049.3,2.96430915]
[1770484797636,0.58158863,2050.7,2049.3,2.96430915]
[1770484797929,0.58158863,2050.7,2049.3,0.05992726]
[1770484798128,0.58158863,2050.5,2049.3,0.48634337]
[1770484798331,0.58158863,2050.5,2049.2,0.06420071]
[1770484798533,0.58158863,2050.3,2049.3,0.05992726]
[1770484798736,0.58158863,2051.1,2049.4,0.05992726]
[1770484798923,0.58158863,2050.7,2049.4,0.05992726]
[1770484799129,0.58158863,2050.7,2049.6,0.05992726]
[1770484799324,40.07635558,2050.6,2049.6,0.05992726]
[1770484799534,0.58158863,2050.6,2049.6,0.05992726]
[1770484799836,40.07635558,2050.5,2049.6,0.05992726]
[1770484800135,0.58158863,2051.4,2049.6,0.05992726]
[1770484800333,0.58158863,2051.4,2049.7,0.05027602]
[1770484800631,39.49476695,2051.3,2050.0,0.05027602]
[1770484800836,0.58158863,2051.2,2050.0,2.70381013]
[1770484801134,0.58158863,2051.2,2049.6,4.35657284]
[1770484801427,0.58821083,2051.0,2049.5,4.35657284]
[1770484801828,0.59976785,2050.8,2049.5,4.35657284]
[1770484802029,0.59976785,2050.8,2049.3,4.35657284]
[1770484802334,0.59976785,2050.6,2049.2,4.83219881]
[1770484802535,0.59976785,2050.6,2049.2,0.47562597]
[1770484802734,0.59976785,2050.4,2049.2,0.47562597]
[1770484803123,0.2439,2051.6,2049.2,0.47562597]
[1770484803124,40.0945348,2050.3,2049.2,0.47562597]
[1770484803329,0.59976785,2050.3,2049.2,0.47562597]
[1770484803632,40.0945348,2050.3,2049.2,0.47562597]
[1770484804134,0.59861988,2051.5,2049.3,5.28632495]
[1770484804333,0.59861988,2051.4,2049.3,4.35657284]
[1770484804733,0.59861988,2051.4,2049.6,4.35657284]
[1770484804935,0.59861988,2051.2,2049.8,4.35657284]
[1770484805135,0.59861988,2051.2,2050.0,4.35657284]
[1770484805335,39.49476695,2051.1,2050.0,4.35657284]
[1770484805526,0.59861988,2051.2,2050.2,4.35657284]
[1770484805733,0.60142315,2051.5,2050.3,4.35657284]
[1770484805937,39.49476695,2051.6,2050.4,4.35657284]
[1770484806133,40.0961901,2051.6,2050.4,4.35657284]
[1770484806435,40.0961901,2051.6,2050.5,5.18772487]
[1770484806634,40.0961901,2051.6,2050.4,4.35657284]
[1770484806835,39.49476695,2051.6,2050.5,4.35657284]
[1770484807338,0.00344705,2051.7,2050.5,5.58275813]
[1770484807533,39.49476695,2051.6,2050.5,9.93933097]
[1770484807733,39.49476695,2051.6,2050.5,5.58275813]
[1770484808039,0.60150473,2051.5,2050.0,4.35657284]
[1770484808434,0.60150473,2051.3,2050.0,4.35657284]
[1770484808641,0.60150473,2051.3,2049.7,4.35657284]
[1770484808836,0.00344705,2051.7,2049.8,4.35657284]
[1770484808837,0.60150473,2051.1,2049.8,4.35657284]
[1770484809345,0.60150473,2050.9,2049.7,4.35657284]
[1770484809832,0.60067332,2050.7,2049.6,4.35657284]
[1770484810032,0.60067332,2050.7,2049.5,4.35657284]
[1770484810232,0.60067332,2050.5,2049.4,4.60073284]
[1770484810737,39.49476695,2050.4,2049.4,4.60073284]
[1770484810940,39.49476695,2050.4,2049.5,5.39759091]
[1770484811340,0.60070134,2050.8,2049.6,4.35657284]
[1770484811841,39.49476695,2050.7,2049.7,9.8833044]
[1770484812040,0.60070134,2051.6,2050.0,4.35657284]
[1770484812241,0.60070134,2051.5,2050.1,4.35657284]
[1770484812539,0.60070134,2051.5,2050.2,4.35657284]
[1770484812831,0.60070134,2051.3,2050.0,4.35657284]
[1770484813036,0.60070134,2051.3,2050.1,4.35657284]
[1770484813335,0.60070134,2051.1,2050.2,4.35657284]
[1770484813639,0.00344705,2051.7,2050.2,9.66806114]
[1770484813640,0.60240949,2051.4,2050.2,9.66806114]
[1770484813839,0.60240949,2051.4,2050.2,4.35657284]
[1770484814040,0.60240949,2051.2,2050.2,4.35657284]
[1770484814234,40.09717644,2051.5,2050.3,4.35657284]
[1770484814443,0.60240949,2051.5,2050.5,4.35657284]
[1770484815234,39.49476695,2051.4,2050.6,4.35657284]
[1770484815437,0.00344705,2051.7,2050.7,4.35657284]
[1770484815739,40.09718769,2051.7,2050.8,4.35657284]
[1770484815940,39.49476695,2051.7,2050.8,4.35657284]
[1770484816142,0.60242074,2051.6,2050.8,9.78055479]
[1770484816442,0.60242074,2051.6,2050.7,4.3624172]
[1770484816636,40.09718769,2051.5,2050.7,4.3624172]
[1770484816831,39.49476695,2051.5,2050.7,4.3624172]
[1770484817041,0.0047391,2051.6,2050.8,4.35657284]
[1770484817237,37.37302531,2051.5,2050.8,4.35657284]
[1770484817738,0.60105816,2052.2,2051.2,4.35657284]
[1770484817934,37.37302531,2052.2,2051.4,4.35657284]
[1770484818337,0.55153015,2054.0,2051.7,0.57456419]
[1770484818542,16.54435854,2054.5,2051.7,0.57456419]
[1770484818543,0.55153015,2053.4,2052.1,0.57456419]
[1770484818740,0.55153015,2053.2,2052.2,0.57456419]
[1770484818944,0.55153015,2053.2,2052.2,0.57947368]
[1770484819135,0.55153015,2053.0,2052.2,0.57947368]
[1770484819340,0.55153015,2053.0,2052.2,0.00490949]
[1770484819742,0.55153015,2052.8,2052.2,0.00490949]
[1770484819945,0.24709809,2054.0,2052.2,0.57922752]
[1770484819946,0.55153015,2053.7,2052.2,0.57922752]
[1770484820142,0.03304015,2053.0,2052.2,0.57922752]
[1770484820442,0.55153015,2053.8,2052.3,5.15792329]
[1770484820641,0.55153015,2053.8,2052.2,0.00490949]
[1770484820940,0.55153015,2053.6,2052.2,0.57947368]
[1770484821544,0.55153015,2053.4,2052.2,0.57947368]
[1770484821846,0.55153015,2053.4,2052.2,0.00490949]
[1770484822147,0.55153015,2053.4,2051.6,0.57456419]
[1770484822444,0.55153015,2053.2,2051.6,0.57456419]
[1770484822646,0.55153015,2053.0,2051.4,4.93113703]
[1770484822840,0.55153015,2053.0,2051.6,0.57456419]
[1770484823143,0.55153015,2052.8,2051.6,0.5795101]
[1770484823536,0.55153015,2052.6,2051.6,0.5795101]
[1770484823837,0.55153015,2052.4,2051.6,0.5795101]
[1770484824038,0.00354861,2052.4,2051.6,0.5795101]
[1770484824238,37.36811582,2052.3,2051.6,0.5795101]
[1770484824948,0.55153015,2052.2,2051.2,4.35657284]
[1770484825146,0.55153015,2052.2,2051.3,0.57456419]
[1770484825343,37.91964597,2052.1,2051.3,0.57456419]
[1770484825644,0.55153015,2052.1,2051.3,0.57456419]
[1770484825842,0.55153015,2051.9,2051.1,4.35657284]
[1770484826040,0.55153015,2051.9,2051.1,0.0043133]
[1770484826242,0.55153015,2051.7,2050.7,0.57456419]
[1770484826641,0.55153015,2051.5,2050.7,0.57456419]
[1770484826845,0.55153015,2051.5,2050.4,4.35657284]
[1770484827143,0.55153015,2051.3,2050.4,4.36038172]
[1770484827347,0.55153015,2051.3,2050.4,0.57837307]
[1770484827546,0.55153015,2051.3,2050.5,0.57456419]
[1770484827743,37.36811582,2051.2,2050.5,0.57456419]
[1770484828138,0.55153015,2051.1,2050.4,0.00380888]
[1770484828344,0.55153015,2051.1,2050.0,4.60065284]
[1770484828345,0.55153015,2051.1,2050.1,0.57456419]
[1770484828648,37.36811582,2051.0,2050.2,0.57456419]
[1770484828837,0.55153015,2051.3,2050.2,0.57456419]
[1770484829039,0.55153015,2051.1,2050.1,4.35657284]
[1770484829242,0.55153015,2051.1,2050.0,4.93113703]
[1770484829446,0.55153015,2050.9,2050.1,0.58001178]
[1770484829745,0.55787128,2050.9,2050.1,0.00544759]
[1770484829943,37.91964597,2050.8,2050.1,0.00544759]
[1770484830140,37.91964597,2050.8,2050.1,0.58001178]
[1770484830343,37.36811582,2050.8,2050.2,0.57456419]
[1770484831242,37.35989993,2050.9,2050.5,0.57456419]
[1770484831439,0.55153015,2051.8,2050.6,0.57456419]
[1770484831949,0.55153015,2051.6,2050.3,4.93113703]
[1770484832350,0.55153015,2051.4,2050.3,0.57456419]
[1770484832646,0.55153015,2051.4,2050.2,4.35657284]
[1770484832850,0.55153015,2051.2,2050.2,4.35657284]
[1770484833050,0.55153015,2051.2,2050.1,4.93658462]
[1770484833242,0.00413237,2051.6,2050.0,4.35657284]
[1770484833243,0.55153015,2051.0,2050.0,4.35657284]
[1770484833444,0.55153015,2051.0,2049.5,4.35657284]
[1770484833648,0.55153015,2050.8,2049.3,4.93113703]
[1770484833953,0.55153015,2050.8,2049.5,0.57456419]
[1770484834153,0.55153015,2050.6,2049.5,0.57456419]
[1770484834357,0.55153015,2050.6,2049.7,0.57456419]
[1770484834553,37.91143008,2050.5,2049.7,0.57456419]
[1770484834848,0.55153015,2051.2,2049.8,0.57456419]
[1770484835049,0.55153015,2051.2,2049.9,0.57456419]
[1770484835245,0.55153015,2051.0,2050.1,0.57456419]
[1770484836150,0.55153015,2051.0,2049.9,4.92746282]
[1770484836351,0.57946119,2050.8,2050.0,0.57088998]
[1770484836755,0.57946119,2050.6,2049.9,4.35657284]
[1770484837050,0.57946119,2051.4,2049.9,0.57088998]
[1770484837252,0.57946119,2050.9,2049.9,0.57088998]
[1770484837651,0.57946119,2050.7,2049.9,0.57088998]
[1770484838051,37.35989993,2050.6,2049.9,0.57088998]
[1770484838858,0.57946119,2050.9,2049.9,0.57088998]
[1770484839159,0.57946119,2050.7,2049.9,0.57088998]
[1770484839650,37.35989993,2050.6,2049.9,0.57088998]
[1770484839848,37.93936112,2050.6,2049.9,0.57088998]
[1770484840352,37.35989993,2050.5,2049.9,0.57088998]
[1770484840856,0.57946119,2050.4,2049.6,4.92746282]
[1770484841055,0.57946119,2050.4,2049.7,0.57088998]
[1770484841252,37.35989993,2050.3,2049.7,0.57088998]
[1770484841558,0.57946119,2050.6,2049.7,0.57088998]
[1770484841752,0.00413237,2051.6,2049.7,0.57088998]
[1770484841753,37.93936112,2050.5,2049.7,0.57088998]
[1770484841953,0.57946119,2050.4,2049.5,4.36042188]
[1770484842157,0.57946119,2050.4,2049.5,0.00384904]
[1770484842546,0.57946119,2050.4,2049.5,0.57473902]
[1770484842752,0.57946119,2050.2,2049.5,0.00384904]
[1770484843153,37.93936112,2050.1,2049.5,0.00384904]
[1770484843358,0.57946119,2050.0,2049.5,0.00384904]
[1770484843553,37.93936112,2050.0,2049.5,0.00384904]
[1770484843760,0.57946119,2049.9,2049.5,0.00384904]
[1770484843957,37.35989993,2049.8,2049.2,5.39881534]
[1770484844258,37.35989993,2049.8,2049.2,1.0422425]
[1770484844456,0.57946119,2049.7,2049.2,0.47135252]
[1770484844757,0.57946119,2049.7,2049.0,4.92746282]
[1770484844955,37.35989993,2049.6,2049.1,0.57088998]
[1770484845152,37.35989993,2050.0,2049.1,0.57088998]
[1770484845553,0.57946119,2049.8,2049.1,1.07208373]
[1770484845756,37.35562131,2049.9,2049.2,0.57088998]
[1770484846057,37.35562131,2049.7,2049.2,0.57088998]
[1770484846254,37.9350825,2049.7,2049.0,0.57088998]
[1770484846460,37.35562131,2049.7,2049.0,0.57088998]
[1770484846648,37.35562131,2049.7,2049.0,0.57455435]
[1770484847462,37.35562131,2049.7,2049.0,1.07246257]
[1770484847657,37.9350825,2049.7,2049.0,1.07246257]
[1770484848657,37.9350825,2049.7,2049.1,0.57088998]
[1770484849057,37.35562131,2049.7,2049.1,0.57088998]
[1770484849257,37.9350825,2049.7,2049.1,0.57088998]
[1770484850759,0.57946119,2049.6,2049.0,4.85814543]
[1770484851161,0.57946119,2049.4,2049.0,0.50157259]
[1770484851364,0.57946119,2049.9,2049.0,5.42903541]
[1770484851565,0.57946119,2049.4,2049.0,4.85814543]
[1770484852064,37.9350825,2049.3,2049.0,4.85814543]
[1770484852265,0.57946119,2049.3,2049.0,4.85814543]
[1770484852464,37.35562131,2049.2,2049.0,4.85814543]
[1770484852660,37.9350825,2049.2,2048.9,5.19649812]
[1770484852960,31.4999875,2049.2,2048.9,5.7673881]
[1770484853164,0.00627597,2050.1,2049.1,0.57088998]
[1770484853356,26.02572726,2050.0,2049.7,0.57088998]
[1770484853560,0.00627597,2050.1,2049.8,0.57088998]
[1770484853864,0.00627597,2050.1,2049.8,0.57516929]
[1770484854064,24.98465323,2050.1,2049.8,0.57516929]
[1770484854269,0.00627597,2050.1,2049.8,0.57516929]
[1770484854565,5.97e-06,2050.1,2049.9,0.57088998]
[1770484854861,0.57946119,2051.5,2050.0,0.57088998]
[1770484855164,0.57946119,2050.7,2050.0,0.57088998]
[1770484855362,0.57946119,2050.7,2050.0,7.81250785]
[1770484855562,25.55784442,2050.6,2050.0,7.81250785]
[1770484855758,0.57946119,2051.3,2050.3,0.57088998]
[1770484855960,0.58492839,2051.3,2050.3,7.81250785]
[1770484856360,0.57946119,2051.1,2050.4,0.57088998]
[1770484856559,25.55784442,2051.2,2050.7,0.57088998]
[1770484856761,24.97838323,2051.2,2050.7,0.57088998]
[1770484856961,23.89150736,2051.2,2051.0,7.74122026]
[1770484857167,0.57946119,2051.1,2050.9,7.24161787]
[1770484857363,23.89150736,2051.2,2050.9,7.24161787]
[1770484857665,24.47096855,2051.2,2051.0,7.24161787]
[1770484857865,0.57946119,2051.1,2050.6,7.24161787]
[1770484858262,23.89150736,2051.0,2050.7,7.24161787]
[1770484859464,23.89150736,2051.0,2050.6,7.74163231]
[1770484860268,0.57946119,2050.9,2050.2,17.88913962]
[1770484860457,0.0054672,2051.3,2050.2,17.88913962]
[1770484860458,0.57946119,2051.0,2050.5,7.81250785]
[1770484860659,23.89150736,2051.2,2050.7,0.57088998]
[1770484860866,23.89150736,2051.1,2051.0,2.90421435]
[1770484861068,24.47096855,2051.1,2050.8,7.24161787]
[1770484861369,22.78187281,2051.1,2050.8,7.24161787]
[1770484861570,0.58492839,2051.3,2050.8,7.81250785]
[1770484861871,0.58492839,2051.3,2051.2,2.90326891]
[1770484862471,22.78734001,2051.3,2051.2,2.90326891]
[1770484862673,0.57946119,2052.8,2051.2,0.40888353]
[1770484862968,0.57946119,2052.8,2051.0,7.24161787]
[1770484862969,0.57946119,2052.4,2051.0,7.24161787]
[1770484863160,0.57946119,2052.4,2050.8,0.58786586]
[1770484863470,0.0237238,2052.2,2050.8,0.58786586]
[1770484863670,0.02780761,2052.2,2050.8,0.58786586]
[1770484863971,0.0237238,2052.0,2050.8,0.58786586]
[1770484864368,0.0237238,2051.8,2050.8,0.58786586]
[1770484864870,22.22319794,2051.7,2050.8,0.58786586]
[1770484865071,0.0237238,2051.7,2050.8,0.58786586]
[1770484865265,22.22319794,2051.6,2050.8,0.58786586]
[1770484865466,0.02282097,2051.9,2050.8,0.58786586]
[1770484865867,22.19947414,2051.8,2050.8,0.58786586]
[1770484866069,22.22229511,2051.8,2050.8,0.58786586]
[1770484867270,0.02282097,2051.7,2050.6,0.57608938]
[1770484867673,22.19947414,2051.6,2050.6,0.57608938]
[1770484867969,0.01498143,2051.5,2050.5,7.24161787]
[1770484868175,0.01498143,2051.5,2050.4,0.58000915]
[1770484868374,22.19947414,2051.4,2050.4,0.58000915]
[1770484868567,0.01498143,2051.9,2050.4,5.89545257]
[1770484868768,0.01498143,2051.9,2050.5,0.58000915]
[1770484868969,0.00408381,2052.2,2050.3,0.24405]
[1770484868970,0.01498143,2051.7,2050.3,0.24405]
[1770484869174,0.01498143,2051.7,2050.4,0.58000915]
[1770484869380,0.01498143,2051.5,2050.2,0.57740471]
[1770484869567,0.02019032,2052.0,2050.2,0.57740471]
[1770484869768,0.02019032,2051.4,2050.2,0.57740471]
[1770484870470,22.19947414,2051.3,2050.2,0.57740471]
[1770484870671,0.02019032,2051.2,2050.2,0.57740471]
[1770484870872,22.21942751,2051.3,2050.2,0.57740471]
[1770484871074,22.19947414,2051.3,2050.2,0.57740471]
[1770484872572,22.21748569,2051.3,2050.2,0.57740471]
[1770484872774,0.33144285,2051.3,2050.5,0.57837562]
[1770484872973,0.01801155,2051.9,2050.8,0.57837562]
[1770484873175,0.33144285,2051.8,2050.9,0.57837562]
[1770484873471,0.01574972,2052.0,2050.9,0.57837562]
[1770484874070,0.33144285,2051.9,2050.9,0.57837562]
[1770484875379,0.34747375,2051.9,2050.9,0.57837562]
[1770484876883,0.00408381,2052.2,2051.3,0.55707361]
[1770484877075,0.00408381,2052.2,2051.4,6.34543756]
[1770484877275,0.00408381,2052.2,2051.3,1.43011833]
[1770484877276,0.00408381,2052.2,2051.5,0.55707361]
[1770484877581,0.35178572,2052.2,2051.5,0.55707361]
[1770484878278,0.00408381,2052.2,2051.5,0.55707361]
[1770484878474,0.00408381,2052.2,2051.6,0.55707361]
[1770484879184,0.34770191,2052.8,2051.8,0.55707361]
[1770484879476,1.66973086,2053.6,2051.9,0.55707361]
[1770484879477,0.35203749,2053.5,2051.9,0.55707361]
[1770484879669,0.35203749,2053.5,2051.4,5.29316648]
[1770484879670,0.35203749,2053.1,2051.4,5.29316648]
[1770484879877,0.35203749,2052.8,2051.3,0.00405747]
[1770484880077,0.35203749,2052.7,2051.3,0.56113108]
[1770484880272,0.35203749,2052.7,2051.3,0.00405747]
[1770484880480,0.35203749,2052.7,2051.3,0.56113108]
[1770484881179,0.35203749,2052.7,2051.3,0.00405747]
[1770484881379,1.77809835,2052.7,2051.3,0.00405747]
[1770484881579,0.3544565,2052.6,2051.3,0.00405747]
[1770484882878,0.3544565,2052.6,2051.3,4.00499443]
[1770484883085,1.42606086,2052.0,2050.7,2.20032925]
[1770484883273,44.68119761,2052.4,2050.8,0.5873814]
[1770484883473,0.00262565,2052.2,2050.8,0.5873814]
[1770484883978,0.00262565,2052.2,2050.8,0.59173219]
[1770484884391,0.00262565,2052.2,2050.8,6.38009614]
[1770484884574,0.00262565,2052.2,2050.9,0.58606857]
[1770484884882,0.00262565,2052.2,2050.9,6.37443252]
[1770484885082,0.00262565,2052.2,2050.9,0.58606857]
[1770484885285,0.00262565,2052.2,2050.9,6.37443252]
[1770484885484,0.00262565,2052.2,2051.0,6.37602359]
[1770484885684,0.00262565,2052.2,2051.1,0.58765964]
[1770484885887,0.00262565,2052.2,2051.2,0.58765964]
[1770484886581,43.25875787,2052.8,2051.3,0.58765964]
[1770484886788,0.00362112,2052.8,2051.6,0.58765964]
[1770484887189,0.00362112,2052.8,2051.5,5.78836395]
[1770484887389,0.00362112,2052.8,2051.5,0.58765964]
[1770484887579,0.00362112,2052.8,2051.4,5.78836395]
[1770484887783,0.00362112,2052.8,2051.5,5.78836395]
[1770484887984,0.00362112,2052.8,2051.4,6.37663975]
[1770484888185,0.00362112,2052.8,2051.6,0.5882758]
[1770484888383,0.00362112,2052.8,2051.6,6.37663975]
[1770484888578,0.00362112,2052.8,2051.7,0.5882758]
[1770484888786,0.00362112,2052.8,2052.0,0.5882758]
[1770484889092,0.00183231,2053.5,2052.3,0.58646524]
[1770484889988,0.00492574,2053.5,2052.3,1.104026]
[1770484890286,0.00492574,2053.5,2052.3,0.51756076]
[1770484890484,0.00492574,2053.5,2052.3,1.10485653]